bitfinex-derivatives/quotes_SOLF0:USTF0_20250206
["timestamp","ask_amount","ask_price","bid_price","bid_amount"]
[1738810613308,4.9933,200.26,200.23,0.03206139]
[1738810613803,4.9937,200.24,200.23,0.03206139]
[1738810615708,4.996,200.15,200.12,55.23544349]
[1738810615906,3.0677,200.23,200.12,55.23544349]
[1738810616312,13.46251044,200.21,200.07,68.69795393]
[1738810616811,0.03209931,200.16,200.07,68.69795393]
[1738810617312,4.9961,200.15,200.09,4.9974]
[1738810617707,4.9961,200.15,200.07,68.69795393]
[1738810618610,0.03209931,200.16,200.1,13.46251044]
[1738810619011,0.03209931,200.16,200.11,4.9969]
[1738810619205,0.03209931,200.16,200.1,13.46251044]
[1738810620515,4.9944,200.22,200.13,13.46251044]
[1738810620810,4.9944,200.22,200.16,13.46251044]
[1738810621217,1.4741,200.23,200.16,13.46251044]
[1738810621514,4.9939,200.24,200.16,13.46251044]
[1738810621810,3.1348,200.29,200.16,13.46251044]
[1738810621811,0.03276931,200.22,200.17,0.03209931]
[1738810622514,5.02696931,200.22,200.17,0.03209931]
[1738810623817,0.03276931,200.22,200.17,0.03209931]
[1738810624413,4.9952,200.18,200.17,0.03209931]
[1738810626608,4.9967,200.13,200.08,55.23544349]
[1738810626916,13.46251044,200.18,200.08,55.23544349]
[1738810627118,4.997,200.11,200.04,18.46101044]
[1738810627616,4.997,200.11,200.04,13.46251044]
[1738810627909,5.03197501,200.1,200.04,13.46251044]
[1738810629417,4.998,200.07,200.04,13.46251044]
[1738810629610,0.03477501,200.1,200.01,17.16251044]
[1738810629806,0.03477501,200.1,200.01,13.46251044]
[1738810630008,13.46251044,200.15,200.01,13.46251044]
[1738810630206,0.03542985,200.08,200.01,13.46251044]
[1738810630614,4.9982,200.06,200.01,13.46251044]
[1738810631420,4.9986,200.05,199.98,17.16251044]
[1738810631811,0.03278389,200.04,199.98,17.16251044]
[1738810632111,4.999,200.03,199.98,13.46251044]
[1738810632315,0.03278389,200.04,199.98,13.46251044]
[1738810632518,0.03278389,200.04,199.95,3.7]
[1738810632519,0.03278389,200.04,199.95,17.16251044]
[1738810632718,4.9997,200.0,199.95,13.46251044]
[1738810632920,0.03278389,200.04,199.98,13.46251044]
[1738810633222,0.03302587,200.03,200.01,18.46191044]
[1738810633412,13.46251044,200.21,200.01,13.46251044]
[1738810633614,1.5542,200.17,200.08,13.46251044]
[1738810634320,4.996,200.15,200.08,13.46251044]
[1738810634521,0.0338706,200.15,200.1,0.0316913]
[1738810635621,0.0338706,200.15,200.11,13.46251044]
[1738810636620,0.0338706,200.15,200.1,21.58375143]
[1738810638022,0.0338706,200.15,200.13,4.9964]
[1738810639920,0.0338706,200.15,200.11,4.9967]
[1738810640221,21.55206013,200.32,200.14,21.55206013]
[1738810640420,3.1939,200.3,200.15,3.7]
[1738810640617,3.1939,200.3,200.18,21.55206013]
[1738810641220,0.03681127,200.26,200.22,0.03631169]
[1738810641923,4.9937,200.24,200.22,0.03631169]
[1738810643024,0.03681127,200.26,200.22,0.03631169]
[1738810643225,4.994,200.23,200.22,0.03631169]
[1738810645427,4.994,200.23,200.15,4.9959]
[1738810645428,0.03681127,200.26,200.1,21.55206013]
[1738810645617,190.0,200.27,200.1,21.55206013]
[1738810645820,4.9942,200.22,200.11,4.9968]
[1738810646017,190.0,200.27,200.11,4.9968]
[1738810646430,4.9953,200.18,200.12,4.9967]
[1738810646727,0.03614682,200.21,200.17,0.03058478]
[1738810646920,190.0,200.27,200.17,0.03058478]
[1738810647125,0.0323125,200.21,200.17,0.03058478]
[1738810647719,4.9952,200.19,200.17,0.03058478]
[1738810649030,4.9952,200.18,200.17,0.03058478]
[1738810652032,1.5534,200.2,200.07,3.7]
[1738810652230,4.9968,200.12,200.07,3.7]
[1738810652930,4.9968,200.12,200.06,26.55006013]
[1738810653229,0.03706041,200.11,200.06,26.55006013]
[1738810653429,0.03706041,200.11,200.06,21.55206013]
[1738810653630,0.03706041,200.11,200.02,21.55206013]
[1738810653830,0.03706041,200.11,200.02,25.25206013]
[1738810654332,0.03706041,200.11,200.02,21.55206013]
[1738810656029,4.9975,200.09,200.02,21.55206013]
[1738810656434,0.03706041,200.11,200.02,21.55206013]
[1738810657836,4.9979,200.08,200.02,21.55206013]
[1738810658532,4.9972,200.1,200.03,4.9989]
[1738810658737,0.03706041,200.11,200.03,18.48110397]
[1738810659738,4.9972,200.1,200.03,18.48110397]
[1738810661630,0.03706041,200.11,200.06,18.48040397]
[1738810661836,190.0,200.19,200.09,13.48220397]
[1738810662036,0.03189543,200.11,200.09,13.48220397]
[1738810662231,190.0,200.19,200.09,13.48220397]
[1738810662441,0.0321335,200.12,200.09,13.48220397]
[1738810663141,190.0,200.19,200.09,17.18220397]
[1738810663340,4.5563,200.2,200.14,13.48220397]
[1738810664233,0.03655672,200.19,200.15,0.0321335]
[1738810664830,5.03155672,200.19,200.15,0.0321335]
[1738810666342,0.03655672,200.19,200.15,0.0321335]
[1738810666538,0.03655672,200.19,200.17,13.48220397]
[1738810668138,0.03655672,200.19,200.15,0.0321335]
[1738810670746,4.9952,200.18,200.15,0.0321335]
[1738810671047,0.03655672,200.19,200.15,0.0321335]
[1738810671749,4.9955,200.17,200.15,0.0321335]
[1738810671948,245.28060978,200.38,200.16,13.48220397]
[1738810672247,55.28060978,200.38,200.3,13.48220397]
[1738810672445,55.28060978,200.38,200.31,8.6919]
[1738810672639,55.28060978,200.38,200.34,13.48220397]
[1738810673050,55.31244089,200.38,200.34,13.51685434]
[1738810673751,0.03183111,200.38,200.34,13.51685434]
[1738810674755,0.03183111,200.38,200.34,0.03465037]
[1738810676543,5.02223111,200.38,200.34,0.03465037]
[1738810676746,0.03183111,200.38,200.34,0.03465037]
[1738810677353,4.9906,200.37,200.34,0.03465037]
[1738810679154,4.9907,200.36,200.34,0.03465037]
[1738810679454,0.03183111,200.38,200.28,21.50790255]
[1738810679648,1.6062,200.4,200.28,21.50790255]
[1738810680453,0.03637615,200.36,200.32,0.03403985]
[1738810681157,4.9912,200.34,200.32,0.03403985]
[1738810686356,0.03637615,200.36,200.32,0.03403985]
[1738810686562,4.9915,200.33,200.32,0.03403985]
[1738810699368,4.9912,200.34,200.32,0.03403985]
[1738810699568,4.9912,200.34,200.33,13.44814012]
[1738810700565,5.02717615,200.36,200.33,13.44814012]
[1738810700770,0.03637615,200.36,200.33,13.44814012]
[1738810701475,4.9901,200.39,200.33,18.43954012]
[1738810701676,4.9901,200.39,200.37,13.44814012]
[1738810704377,4.9907,200.36,200.34,13.44814012]
[1738810711783,1.64315823,200.4,200.34,13.44814012]
[1738810712784,1.64315823,200.4,200.38,13.44814012]
[1738810712976,0.03695823,200.4,200.38,13.44814012]
[1738810713776,5.02665823,200.4,200.38,13.44814012]
[1738810715585,0.03695823,200.4,200.37,0.03474031]
[1738810715885,4.99,200.39,200.37,0.03474031]
[1738810716584,4.99,200.39,200.38,8.60199563]
[1738810717483,0.03695823,200.4,200.38,8.60199563]
[1738810718978,1.4731,200.46,200.38,8.60199563]
[1738810719282,3.0563,200.49,200.44,8.60199563]
[1738810719984,3.09072897,200.49,200.44,8.63877753]
[1738810721986,4.9885,200.45,200.44,8.63877753]
[1738810723682,4.9885,200.45,200.44,0.0367819]
[1738810724986,4.9881,200.47,200.44,8.63877753]
[1738810725187,4.9881,200.47,200.46,8.60199563]
[1738810726290,3.09072897,200.49,200.44,8.63877753]
[1738810726490,4.9883,200.46,200.44,8.63877753]
[1738810730998,3.09072897,200.49,200.44,8.63877753]
[1738810731198,4.9885,200.45,200.44,8.63877753]
[1738810732095,4.9885,200.45,200.44,0.0367819]
[1738810735696,4.9885,200.45,200.44,8.63877753]
[1738810736492,4.9885,200.45,200.44,0.0367819]
[1738810736901,4.9898,200.4,200.38,8.60199563]
[1738810740006,0.03375201,200.41,200.38,8.60199563]
[1738810740209,0.03375201,200.41,200.4,8.60199563]
[1738810743114,0.03375201,200.41,200.38,8.60199563]
[1738810743813,0.03375201,200.41,200.4,8.60199563]
[1738810747617,0.03375201,200.41,200.38,8.60199563]
[1738810748814,5.02325201,200.41,200.38,8.60199563]
[1738810749012,0.03375201,200.41,200.4,8.60199563]
[1738810750016,0.03375201,200.41,200.38,8.60199563]
[1738810751019,0.03375201,200.41,200.4,8.60199563]
[1738810754319,8.044,200.49,200.41,4.9894]
[1738810754525,1.5268,200.56,200.48,8.60199563]
[1738810754722,3.0391,200.56,200.5,8.60199563]
[1738810754918,4.9865,200.54,200.5,8.60199563]
[1738810755119,3.0391,200.56,200.5,8.60199563]
[1738810755623,0.0376558,200.55,200.51,0.03656632]
[1738810756722,4.9865,200.53,200.51,0.03656632]
[1738810759922,4.9867,200.52,200.51,0.03656632]
[1738810760717,4.9878,200.48,200.44,8.60199563]
[1738810761122,8.60199563,200.51,200.44,8.60199563]
[1738810761314,4.9883,200.46,200.42,8.60199563]
[1738810761517,4.9883,200.46,200.44,8.60199563]
[1738810762226,0.03161154,200.47,200.44,8.60199563]
[1738810762424,0.03161154,200.47,200.46,8.60199563]
[1738810762921,4.9884,200.46,200.44,8.60199563]
[1738810763312,8.63360717,200.47,200.43,0.03594854]
[1738810763724,1.5974,200.46,200.43,0.03594854]
[1738810764626,8.60199563,200.45,200.36,8.60199563]
[1738810764825,8.60199563,200.43,200.36,8.60199563]
[1738810765823,0.03694315,200.42,200.37,0.0312]
[1738810766724,4.9902,200.38,200.37,0.0312]
[1738810770028,4.99,200.39,200.37,0.0312]
[1738810770230,0.03694315,200.42,200.37,0.0312]
[1738810770427,8.60199563,200.41,200.37,0.0312]
[1738810770629,4.9902,200.38,200.37,0.0312]
[1738810771930,8.60199563,200.39,200.32,8.60199563]
[1738810772227,8.60199563,200.37,200.3,8.60199563]
[1738810772835,4.9918,200.32,200.3,8.60199563]
[1738810773034,1.5031,200.38,200.3,8.60199563]
[1738810773230,0.03370902,200.33,200.3,8.60199563]
[1738810774833,4.9917,200.32,200.3,8.60199563]
[1738810775330,4.992,200.31,200.3,8.60199563]
[1738810775534,0.03370902,200.33,200.28,8.60199563]
[1738810776533,4.9922,200.3,200.28,8.60199563]
[1738810776935,0.03370902,200.33,200.28,8.60199563]
[1738810778335,4.9922,200.31,200.28,8.60199563]
[1738810778931,8.63570465,200.33,200.26,8.60199563]
[1738810779135,8.60199563,200.33,200.24,8.60199563]
[1738810779436,4.9931,200.27,200.24,8.60199563]
[1738810779635,0.03658626,200.32,200.24,8.60199563]
[1738810779832,8.60199563,200.33,200.24,8.60199563]
[1738810780031,4.9928,200.28,200.24,8.60199563]
[1738810783936,5.02693338,200.3,200.26,8.60199563]
[1738810784436,0.03453338,200.3,200.28,8.60199563]
[1738810786835,0.03453338,200.3,200.26,8.60199563]
[1738810787736,5.02673338,200.3,200.26,8.60199563]
[1738810789032,0.03453338,200.3,200.26,8.60199563]
[1738810789238,0.03453338,200.3,200.28,8.60199563]
[1738810798743,0.03453338,200.3,200.24,8.60199563]
[1738810799041,0.03453338,200.3,200.22,8.60199563]
[1738810799746,8.60199563,200.29,200.2,8.60199563]
[1738810800043,4.9935,200.25,200.2,8.60199563]
[1738810800439,0.03266053,200.25,200.22,8.60199563]
[1738810800647,0.03266053,200.25,200.18,2.748]
[1738810800648,0.03266053,200.25,200.24,8.60199563]
[1738810802941,6.5049,200.35,200.27,4.9928]
[1738810803141,8.60199563,200.4,200.31,8.60199563]
[1738810803346,8.60199563,200.4,200.33,8.60199563]
[1738810803652,8.60199563,200.38,200.29,8.60199563]
[1738810803940,4.6701,200.42,200.31,0.03266053]
[1738810803941,4.9912,200.34,200.31,0.03266053]
[1738810804147,0.03629052,200.36,200.31,0.03266053]
[1738810805743,4.9914,200.34,200.31,8.63465616]
[1738810806047,0.03629052,200.36,200.31,8.63465616]
[1738810806247,0.03629052,200.36,200.33,8.60199563]
[1738810807049,0.03629052,200.36,200.35,8.60199563]
[1738810809049,0.03629052,200.36,200.33,8.60199563]
[1738810809552,0.03629052,200.36,200.35,8.60199563]
[1738810811153,4.9891,200.43,200.35,13.59269563]
[1738810811354,4.9891,200.43,200.38,8.60199563]
[1738810811550,8.60199563,200.44,200.36,8.60199563]
[1738810811750,4.9896,200.41,200.36,8.60199563]
[1738810812049,8.60199563,200.44,200.36,8.60199563]
[1738810812250,0.03487134,200.41,200.36,8.63943703]
[1738810812448,0.03487134,200.41,200.38,8.60199563]
[1738810815056,0.03487134,200.41,200.36,8.63943703]
[1738810815257,8.60199563,200.4,200.36,0.0374414]
[1738810815653,4.9902,200.38,200.36,0.0374414]
[1738810816061,0.03487134,200.41,200.36,8.63943703]
[1738810816263,5.02437134,200.41,200.36,8.63943703]
[1738810816452,0.03487134,200.41,200.36,8.63943703]
[1738810816859,4.9897,200.4,200.36,8.63943703]
[1738810817460,0.03487134,200.41,200.36,8.63943703]
[1738810817761,0.03487134,200.41,200.4,8.60199563]
[1738810818761,0.03487134,200.41,200.4,13.59169563]
[1738810819163,4.9879,200.48,200.4,8.60199563]
[1738810819353,4.9879,200.48,200.44,8.60199563]
[1738810819558,1.4923,200.52,200.46,8.60199563]
[1738810819861,8.60199563,200.56,200.48,8.60199563]
[1738810820358,0.03173344,200.54,200.5,0.0324817]
[1738810821866,5.01823344,200.54,200.5,0.0324817]
[1738810822060,0.03173344,200.54,200.5,0.0324817]
[1738810823170,4.9868,200.52,200.5,0.0324817]
[1738810823772,4.9879,200.48,200.41,3.68]
[1738810824772,4.9875,200.5,200.43,13.42299744]
[1738810824968,0.03360425,200.47,200.43,13.42299744]
[1738810825169,14.90159744,200.57,200.43,13.42299744]
[1738810825472,5.0257985,200.47,200.43,13.45455307]
[1738810825769,13.42299744,200.54,200.43,0.03540537]
[1738810825967,0.03496504,200.47,200.43,0.03540537]
[1738810826167,4.9888,200.44,200.41,3.68]
[1738810826369,0.03496504,200.47,200.42,0.0363918]
[1738810826574,4.9878,200.48,200.42,0.0363918]
[1738810826871,0.03614303,200.47,200.42,0.0363918]
[1738810827775,4.9887,200.44,200.42,0.0363918]
[1738810828670,0.03614303,200.47,200.42,0.0363918]
[1738810828873,4.989,200.43,200.42,0.0363918]
[1738810831970,13.42299744,200.45,200.34,13.42299744]
[1738810832279,13.42299744,200.45,200.31,13.42299744]
[1738810832680,4.9903,200.38,200.31,13.42299744]
[1738810833374,0.03824484,200.37,200.32,0.03386055]
[1738810834778,4.9915,200.33,200.32,0.03386055]
[1738810839079,0.03824484,200.37,200.32,0.03386055]
[1738810839878,4.9911,200.35,200.32,0.03386055]
[1738810840082,0.03824484,200.37,200.32,0.03386055]
[1738810841281,4.9907,200.36,200.32,0.03386055]
[1738810841486,0.03824484,200.37,200.32,0.03386055]
[1738810842487,5.02894484,200.37,200.32,0.03386055]
[1738810842991,0.03824484,200.37,200.32,0.03386055]
[1738810843191,4.9915,200.33,200.32,0.03386055]
[1738810846394,13.42299744,200.36,200.24,13.42299744]
[1738810846894,13.42299744,200.33,200.18,13.42299744]
[1738810847089,14.98,200.36,200.18,13.42299744]
[1738810847090,13.42299744,200.3,200.18,13.42299744]
[1738810847593,0.03160619,200.26,200.18,13.42299744]
[1738810847893,4.9942,200.22,200.15,22.09879744]
[1738810848293,13.42299744,200.3,200.15,17.10299744]
[1738810848590,0.03614574,200.21,200.15,17.10299744]
[1738810848795,0.03614574,200.21,200.18,13.42299744]
[1738810849691,3.0314,200.32,200.18,13.42299744]
[1738810849890,1.4704,200.37,200.26,13.42299744]
[1738810850090,4.9918,200.32,200.26,13.42299744]
[1738810850595,4.5684,200.37,200.26,13.42299744]
[1738810850995,4.9916,200.33,200.29,0.03723408]
[1738810851196,0.03309117,200.34,200.29,0.03723408]
[1738810851496,4.9919,200.32,200.29,0.03723408]
[1738810852992,0.03309117,200.34,200.29,13.46023152]
[1738810856289,0.03309117,200.34,200.32,13.42299744]
[1738810856993,0.03309117,200.34,200.29,13.46023152]
[1738810857195,4.9918,200.32,200.29,0.03723408]
[1738810857496,0.03309117,200.34,200.29,0.03723408]
[1738810858493,13.42299744,200.33,200.29,0.03723408]
[1738810858901,4.9934,200.26,200.2,55.23544349]
[1738810859795,4.9934,200.26,200.19,17.10299744]
[1738810860095,0.03338282,200.25,200.19,17.10299744]
[1738810864806,4.994,200.23,200.19,17.10299744]
[1738810865610,0.03338282,200.25,200.22,13.42299744]
[1738810865810,4.6778,200.35,200.22,13.42299744]
[1738810866005,4.6778,200.35,200.26,13.42299744]
[1738810867109,0.03161464,200.33,200.28,0.03338282]
[1738810868408,5.02311464,200.33,200.28,0.03338282]
[1738810869006,0.03161464,200.33,200.28,0.03338282]
[1738810869704,0.03161464,200.33,200.32,13.42299744]
[1738810870709,0.03161464,200.33,200.29,17.10299744]
[1738810870907,0.03161464,200.33,200.29,3.68]
[1738810871908,0.03161464,200.33,200.28,0.03338282]
[1738810872502,4.9923,200.3,200.28,0.03338282]
[1738810875215,4.9925,200.29,200.28,0.03338282]
[1738810875712,1.518,200.32,200.18,3.68]
[1738810875903,4.9928,200.28,200.18,3.68]
[1738810876108,13.42299744,200.3,200.17,13.42299744]
[1738810876710,0.03427582,200.26,200.17,13.42299744]
[1738810877813,4.9937,200.24,200.17,18.41839744]
[1738810879410,0.03427582,200.26,200.2,13.42299744]
[1738810880115,4.9937,200.24,200.2,13.42299744]
[1738810885216,4.9942,200.22,200.2,13.42299744]
[1738810885415,4.9942,200.22,200.17,17.10299744]
[1738810885818,5.02795493,200.22,200.17,17.10299744]
[1738810887716,0.03375493,200.22,200.14,69.87757038]
[1738810887921,0.03375493,200.22,200.08,17.10299744]
[1738810888116,4.9962,200.14,200.08,17.10299744]
[1738810888720,4.9959,200.16,200.08,22.10069744]
[1738810890417,0.03515076,200.17,200.12,4.9966]
[1738810890618,0.03515076,200.17,200.14,13.42299744]
[1738810892019,0.03515076,200.17,200.15,4.9959]
[1738810892413,0.03515076,200.17,200.14,13.42299744]
[1738810892414,0.03515076,200.17,200.12,4.9967]
[1738810893126,5.03085076,200.17,200.1,13.42299744]
[1738810893420,0.03515076,200.17,200.1,13.42299744]
[1738810893611,4.996,200.15,200.1,13.42299744]
[1738810894312,5.03075076,200.17,200.1,13.42299744]
[1738810895517,4.9957,200.16,200.1,13.42299744]
[1738810896022,0.03515076,200.17,200.1,13.42299744]
[1738810896223,0.03515076,200.17,200.12,4.9966]
[1738810898221,0.03515076,200.17,200.07,14.63089744]
[1738810898422,0.03515076,200.17,200.07,13.42299744]
[1738810899729,4.996,200.15,200.08,4.9976]
[1738810901427,0.03515076,200.17,200.07,13.42299744]
[1738810902022,4.9962,200.14,200.07,13.42299744]
[1738810902423,0.03194885,200.13,200.07,13.42299744]
[1738810904625,4.9982,200.06,200.0,4.9996]
[1738810904928,13.42299744,200.12,199.97,23.05548463]
[1738810904929,13.42299744,200.09,199.97,10.83138999]
[1738810905121,0.03579148,200.05,199.97,10.83138999]
[1738810905326,0.03579148,200.05,199.95,17.10299744]
[1738810906032,0.03579148,200.05,199.95,13.42299744]
[1738810906622,0.03579148,200.05,199.95,68.65844093]
[1738810907630,5.0007,199.97,199.95,55.23544349]
[1738810909233,0.03204528,199.98,199.82,57.11384349]
[1738810909534,5.0008,199.96,199.82,57.11384349]
[1738810910030,0.03319176,199.94,199.87,5.0028]
[1738810910531,0.03319176,199.94,199.89,13.42299744]
[1738810910827,0.03319176,199.94,199.82,57.11384349]
[1738810911028,0.03319176,199.94,199.92,13.42299744]
[1738810912730,0.03319176,199.94,199.89,13.42299744]
[1738810914935,5.03439176,199.94,199.89,13.42299744]
[1738810915233,0.03319176,199.94,199.89,13.42299744]
[1738810915733,0.03319176,199.94,199.92,18.42469744]
[1738810916536,1.4631,200.04,199.92,13.42299744]
[1738810916741,14.94339744,200.08,199.97,13.42299744]
[1738810916742,1.6052,200.07,199.97,13.42299744]
[1738810916936,1.6052,200.07,199.97,17.10299744]
[1738810917924,0.03399719,200.04,200.0,0.03382124]
[1738810918638,4.9992,200.02,200.0,0.03382124]
[1738810918935,13.42299744,200.01,199.88,13.42299744]
[1738810919129,5.0007,199.96,199.88,18.42569744]
[1738810919637,5.0004,199.98,199.9,5.0021]
[1738810919937,0.03273447,199.96,199.9,5.0021]
[1738810920436,0.03273447,199.96,199.88,13.42299744]
[1738810920635,0.03273447,199.96,199.85,21.60335839]
[1738810920827,1.6089,200.01,199.85,21.60335839]
[1738810921026,0.03549684,199.95,199.87,5.0029]
[1738810922139,0.03549684,199.95,199.88,5.0027]
[1738810922538,0.03549684,199.95,199.85,21.60335839]
[1738810923339,0.03549684,199.95,199.88,5.0027]
[1738810923743,0.03549684,199.95,199.85,21.60335839]
[1738810923943,0.03549684,199.95,199.89,5.0024]
[1738810925242,0.03549684,199.95,199.93,21.60335839]
[1738810925447,3.1567,200.07,199.93,21.60335839]
[1738810925752,0.03398628,199.96,199.94,5.0012]
[1738810925944,4.9994,200.02,199.93,21.60335839]
[1738810926145,3.1567,200.07,199.93,21.60335839]
[1738810926353,0.03665699,199.99,199.93,21.60335839]
[1738810926649,0.03665699,199.99,199.95,5.0009]
[1738810926849,0.03665699,199.99,199.93,21.60335839]
[1738810927250,0.03665699,199.99,199.91,1.5445]
[1738810927451,0.03665699,199.99,199.89,25.28335839]
[1738810927849,0.03665699,199.99,199.9,5.0022]
[1738810929854,5.0005,199.97,199.9,5.0022]
[1738810931852,0.03665699,199.99,199.89,25.28335839]
[1738810932052,24.76005839,200.07,199.89,25.28335839]
[1738810932244,0.03417817,199.96,199.85,25.28335839]
[1738810932446,21.60335839,200.03,199.85,21.60335839]
[1738810932648,0.03642825,199.92,199.87,5.0029]
[1738810932847,21.60335839,200.03,199.87,5.0029]
[1738810933054,0.03232889,199.91,199.85,25.28335839]
[1738810933250,21.60335839,200.03,199.86,5.0031]
[1738810933658,0.03344502,199.96,199.86,5.0031]
[1738810934454,5.0013,199.94,199.87,5.0029]
[1738810935954,0.03344502,199.96,199.89,21.60335839]
[1738810936255,190.0,200.06,199.93,21.60335839]
[1738810936457,3.1567,200.07,199.94,3.68]
[1738810936753,0.03584683,200.01,199.94,3.68]
[1738810936949,0.03584683,200.01,199.98,5.0002]
[1738810937151,0.03584683,200.01,199.97,21.60335839]
[1738810937355,1.4732,200.12,199.97,21.60335839]
[1738810937660,1.4732,200.12,199.98,0.90066978]
[1738810937849,1.4732,200.12,199.97,21.60335839]
[1738810938159,1.567,200.14,200.06,4.9981]
[1738810938748,0.03775934,200.12,200.08,0.03584683]
[1738810940859,4.997,200.11,200.08,0.03584683]
[1738810941054,0.03775934,200.12,200.08,0.03584683]
[1738810941552,21.64111773,200.12,199.95,1.1807]
[1738810941759,1.5063,200.11,199.95,1.1807]
[1738810942654,0.03333918,200.05,199.95,1.1807]
[1738810942849,0.03333918,200.05,199.96,5.0006]
[1738810943054,0.03333918,200.05,199.95,1.1807]
[1738810945058,0.03333918,200.05,199.95,3.68]
[1738810945252,0.03333918,200.05,199.92,2.1175]
[1738810945453,1.5063,200.11,199.93,4.58095042]
[1738810945652,0.03474974,200.0,199.93,3.68]
[1738810945956,0.03474974,200.0,199.96,5.0006]
[1738810948660,0.03474974,200.0,199.95,5.0009]
[1738810949257,0.03474974,200.0,199.94,21.60335839]
[1738810950759,0.03474974,200.0,199.96,5.0006]
[1738810951160,0.03474974,200.0,199.94,21.60335839]
[1738810951355,0.03474974,200.0,199.94,26.60435839]
[1738810951859,0.03474974,200.0,199.94,21.60335839]
[1738810952061,0.03474974,200.0,199.95,5.0009]
[1738810952567,5.03444974,200.0,199.94,21.60335839]
[1738810952758,0.03474974,200.0,199.9,17.1753053]
[1738810953065,1.5885,200.03,199.9,13.4953053]
[1738810953256,0.03431598,199.97,199.9,13.4953053]
[1738810954159,0.03431598,199.97,199.87,60.21028841]
[1738810954160,0.03431598,199.97,199.93,13.4953053]
[1738810954756,0.03431598,199.97,199.9,21.59403381]
[1738810955166,5.0008,199.96,199.9,21.59403381]
[1738810955560,0.03431598,199.97,199.9,21.59403381]
[1738810955862,5.0013,199.94,199.87,56.53028841]
[1738810956265,0.03559226,199.92,199.86,23.81313381]
[1738810956565,1.5885,200.03,199.86,23.81313381]
[1738810956766,0.03710233,199.91,199.86,23.81313381]
[1738810956959,1.5885,200.03,199.86,23.81313381]
[1738810957162,0.03308148,199.9,199.86,21.59403381]
[1738810957467,0.03188429,199.9,199.82,21.59403381]
[1738810957864,5.0025,199.89,199.82,21.59403381]
[1738810959267,5.0027,199.88,199.82,21.59403381]
[1738810961567,0.03188429,199.9,199.78,21.59403381]
[1738810961867,5.0033,199.86,199.78,21.59403381]
[1738810962065,5.03928202,199.86,199.78,21.59403381]
[1738810962568,5.03928202,199.86,199.78,26.59913381]
[1738810963068,0.03598202,199.86,199.79,5.0049]
[1738810964470,0.03598202,199.86,199.8,0.90157431]
[1738810964668,0.03598202,199.86,199.78,21.59403381]
[1738810964863,0.03598202,199.86,199.79,0.90157028]
[1738810965067,0.03598202,199.86,199.78,21.59403381]
[1738810966879,0.03598202,199.86,199.79,5.0047]
[1738810967875,0.03598202,199.86,199.81,5.0044]
[1738810968178,0.03598202,199.86,199.82,21.59403381]
[1738810968372,190.0,200.03,199.82,21.59403381]
[1738810968573,191.6215,200.03,199.87,21.59403381]
[1738810968773,191.6215,200.03,199.87,25.27403381]
[1738810969681,0.03174285,199.95,199.91,0.03519632]
[1738810971079,5.0012,199.94,199.91,0.03519632]
[1738810972378,5.0015,199.93,199.91,0.03519632]
[1738810972681,0.03174285,199.95,199.81,3.68]
[1738810972977,1.611,199.95,199.81,3.68]
[1738810973573,5.0019,199.92,199.81,3.68]
[1738810973779,0.0371186,199.9,199.81,3.68]
[1738810974778,0.0371186,199.9,199.83,5.0037]
[1738810975283,0.0371186,199.9,199.81,3.68]
[1738810976787,0.0371186,199.9,199.86,13.50425394]
[1738810977884,0.0371186,199.9,199.88,5.0026]
[1738810978087,0.0371186,199.9,199.86,13.50425394]
[1738810978287,0.0371186,199.9,199.88,5.0025]
[1738810978586,0.0371186,199.9,199.86,13.50425394]
[1738810980485,0.0371186,199.9,199.89,13.50425394]
[1738810980692,13.50425394,200.03,199.91,5.0018]
[1738810981595,4.9997,200.0,199.92,5.0016]
[1738810981892,0.03806346,199.97,199.93,0.03349187]
[1738810983394,0.03806346,199.97,199.96,5.0007]
[1738810984685,1.4819,200.06,200.0,4.9996]
[1738810984890,1.4819,200.06,199.99,13.50425394]
[1738810985398,1.612,200.08,199.99,13.50425394]
[1738810985592,1.612,200.08,200.02,13.50425394]
[1738810985794,0.03423633,200.06,200.02,13.50425394]
[1738810987696,0.03423633,200.06,200.02,18.50345394]
[1738810989199,0.03423633,200.06,200.02,17.18425394]
[1738810989395,0.03423633,200.06,200.04,4.9986]
[1738810989698,0.03423633,200.06,200.05,13.50425394]
[1738810989895,1.5033,200.14,200.05,13.50425394]
[1738810990195,1.5033,200.14,200.06,4.998]
[1738810990394,4.997,200.11,200.02,17.18425394]
[1738810990596,1.5033,200.14,200.02,22.18335394]
[1738810991194,0.03446115,200.1,200.06,0.03196564]
[1738810991995,4.9975,200.09,200.06,0.03196564]
[1738810992605,0.03446115,200.1,200.06,0.03196564]
[1738810993801,0.03446115,200.1,199.98,5.0]
[1738810994105,13.50425394,200.11,199.95,14.61355394]